[Event "Titled Tuesday Blitz April 4 Late 2023"]
[White "Vifleemskaia, Svetlana"]
[Black "Martins, Bruno Andre Leite"]
[WhiteFideId "4129490"]
[BlackFideId "1942255"]
[WhiteElo "1930"]
[BlackElo "2240"]
[Result "0-1"]
[Round "01"]
[TimeControl "180+2"]
[Date "2023.04.04"]
[WhiteClock "0:00:01"]
[BlackClock "0:00:28"]

1. d4 {[%clk 0:02:52]}  Nf6 {[%clk 0:02:56]} 2. c4 {[%clk 0:02:51]}  e6 {[%clk 0:02:55]} 3. Nc3 {[%clk 0:02:51]}  d5 {[%clk 0:02:49]} 4. cxd5 {[%clk 0:02:51]}  exd5 {[%clk 0:02:50]} 5. Bg5 {[%clk 0:02:51]}  a6 {[%clk 0:02:48]} 6. e3 {[%clk 0:02:51]}  Be6 {[%clk 0:02:43]} 7. Bd3 {[%clk 0:02:51]}  Nbd7 {[%clk 0:02:40]} 8. Nge2 {[%clk 0:02:49]}  h6 {[%clk 0:02:33]} 9. Bh4 {[%clk 0:02:48]}  Be7 {[%clk 0:02:32]} 10. O-O {[%clk 0:02:46]}  O-O {[%clk 0:02:30]} 11. Nf4 {[%clk 0:02:45]}  Bg4 {[%clk 0:01:56]} 12. f3 {[%clk 0:02:44]}  Be6 {[%clk 0:01:56]} 13. Bc2 {[%clk 0:02:39]}  c5 {[%clk 0:01:52]} 14. Nxe6 {[%clk 0:02:24]}  fxe6 {[%clk 0:01:51]} 15. Qd3 {[%clk 0:02:24]}  Re8 {[%clk 0:01:34]} 16. Kh1 {[%clk 0:02:14]}  Nf8 {[%clk 0:01:34]} 17. Rad1 {[%clk 0:02:03]}  Rc8 {[%clk 0:01:11]} 18. a3 {[%clk 0:01:50]}  b5 {[%clk 0:01:10]} 19. e4 {[%clk 0:01:36]}  cxd4 {[%clk 0:01:07]} 20. Qxd4 {[%clk 0:01:32]}  dxe4 {[%clk 0:01:06]} 21. Qxd8 {[%clk 0:01:21]}  Rexd8 {[%clk 0:01:07]} 22. Rxd8 {[%clk 0:01:03]}  Bxd8 {[%clk 0:01:04]} 23. fxe4 {[%clk 0:00:47]}  Ng6 {[%clk 0:01:03]} 24. Bg3 {[%clk 0:00:43]}  Nh5 {[%clk 0:01:02]} 25. Bd6 {[%clk 0:00:40]}  Bc7 {[%clk 0:00:58]} 26. e5 {[%clk 0:00:39]}  Nxe5 {[%clk 0:00:57]} 27. Bxc7 {[%clk 0:00:36]}  Rxc7 {[%clk 0:00:57]} 28. Re1 {[%clk 0:00:35]}  Nc4 {[%clk 0:00:54]} 29. Rxe6 {[%clk 0:00:27]}  Nxb2 {[%clk 0:00:51]} 30. Bg6 {[%clk 0:00:20]}  Nf6 {[%clk 0:00:51]} 31. Ne2 {[%clk 0:00:13]}  Kf8 {[%clk 0:00:46]} 32. h3 {[%clk 0:00:12]}  Re7 {[%clk 0:00:44]} 33. Nf4 {[%clk 0:00:05]}  Rxe6 {[%clk 0:00:42]} 34. Nxe6+ {[%clk 0:00:06]}  Kg8 {[%clk 0:00:41]} 35. Nc7 {[%clk 0:00:07]}  Nc4 {[%clk 0:00:40]} 36. Nxa6 {[%clk 0:00:07]}  Nxa3 {[%clk 0:00:40]} 37. Kg1 {[%clk 0:00:06]}  Kf8 {[%clk 0:00:41]} 38. Kf2 {[%clk 0:00:06]}  Ke7 {[%clk 0:00:41]} 39. Ke3 {[%clk 0:00:05]}  Kd6 {[%clk 0:00:42]} 40. Kd4 {[%clk 0:00:06]}  Nd7 {[%clk 0:00:37]} 41. Bf7 {[%clk 0:00:05]}  Nc2+ {[%clk 0:00:36]} 42. Kc3 {[%clk 0:00:04]}  Ne3 {[%clk 0:00:36]} 43. g4 {[%clk 0:00:03]}  Ne5 {[%clk 0:00:35]} 44. Bb3 {[%clk 0:00:01]}  Nd5+ {[%clk 0:00:29]} 45. Kd4 {[%clk 0:00:01]}  Nc6+ {[%clk 0:00:28]} 46. Kd3 {[%clk 0:00:01]}  Nf4+ {[%clk 0:00:28]} 47. Ke4 {[%clk 0:00:01]}  Nxh3 {[%clk 0:00:28]} 0-1


[Site "https://www.chess.com"]

[Event "Titled Tuesday Blitz April 4 Late 2023"]
[White "Manelyuk, Daniil"]
[Black "Smith, Garrett L"]
[WhiteFideId "44173920"]
[BlackFideId "2024829"]
[WhiteElo "2259"]
[BlackElo "2313"]
[Result "0-1"]
[Round "01"]
[TimeControl "180+2"]
[Date "2023.04.04"]
[WhiteClock "0:00:42"]
[BlackClock "0:00:49"]

1. e4 {[%clk 0:02:58]}  c5 {[%clk 0:02:59]} 2. Nf3 {[%clk 0:02:57]}  Nc6 {[%clk 0:02:59]} 3. d4 {[%clk 0:02:58]}  cxd4 {[%clk 0:03:00]} 4. Nxd4 {[%clk 0:02:58]}  e5 {[%clk 0:03:01]} 5. Nb5 {[%clk 0:02:58]}  d6 {[%clk 0:03:01]} 6. N1c3 {[%clk 0:02:58]}  a6 {[%clk 0:03:00]} 7. Na3 {[%clk 0:02:58]}  Be7 {[%clk 0:03:01]} 8. Nd5 {[%clk 0:02:58]}  Nf6 {[%clk 0:03:01]} 9. Nxf6+ {[%clk 0:02:48]}  Bxf6 {[%clk 0:03:02]} 10. c4 {[%clk 0:02:48]}  O-O {[%clk 0:03:01]} 11. Nc2 {[%clk 0:02:48]}  Bg5 {[%clk 0:02:59]} 12. Bd3 {[%clk 0:02:36]}  Bxc1 {[%clk 0:02:43]} 13. Qxc1 {[%clk 0:02:37]}  Be6 {[%clk 0:02:32]} 14. O-O {[%clk 0:02:35]}  Rc8 {[%clk 0:02:33]} 15. Qd2 {[%clk 0:02:32]}  Qh4 {[%clk 0:02:21]} 16. b3 {[%clk 0:02:11]}  Rcd8 {[%clk 0:02:11]} 17. Rad1 {[%clk 0:02:08]}  f5 {[%clk 0:02:05]} 18. exf5 {[%clk 0:02:07]}  Bxf5 {[%clk 0:02:06]} 19. Bxf5 {[%clk 0:02:07]}  Rxf5 {[%clk 0:02:06]} 20. Qd5+ {[%clk 0:01:54]}  Kh8 {[%clk 0:02:06]} 21. c5 {[%clk 0:01:54]}  Rh5 {[%clk 0:01:55]} 22. h3 {[%clk 0:01:49]}  e4 {[%clk 0:01:39]} 23. Qe6 {[%clk 0:01:09]}  Re5 {[%clk 0:01:26]} 24. Qf7 {[%clk 0:01:08]}  Rxc5 {[%clk 0:01:23]} 25. Ne3 {[%clk 0:01:07]}  Qe7 {[%clk 0:01:13]} 26. Qxe7 {[%clk 0:00:58]}  Nxe7 {[%clk 0:01:14]} 27. Rd4 {[%clk 0:00:58]}  d5 {[%clk 0:01:13]} 28. Rfd1 {[%clk 0:00:58]}  a5 {[%clk 0:01:10]} 29. Rxe4 {[%clk 0:00:57]}  Nc6 {[%clk 0:01:06]} 30. Re6 {[%clk 0:00:51]}  d4 {[%clk 0:01:00]} 31. Rxd4 {[%clk 0:00:49]}  Nxd4 {[%clk 0:00:58]} 32. Re7 {[%clk 0:00:49]}  Rc1+ {[%clk 0:00:58]} 33. Kh2 {[%clk 0:00:48]}  b6 {[%clk 0:00:57]} 34. Nd5 {[%clk 0:00:48]}  Rc6 {[%clk 0:00:54]} 35. f3 {[%clk 0:00:46]}  h6 {[%clk 0:00:54]} 36. Nf4 {[%clk 0:00:46]}  Kh7 {[%clk 0:00:52]} 37. h4 {[%clk 0:00:46]}  Rf8 {[%clk 0:00:51]} 38. Kg3 {[%clk 0:00:42]}  Nf5+ {[%clk 0:00:49]} 0-1


[Site "https://www.chess.com"]

[Event "Titled Tuesday Blitz April 4 Late 2023"]
[White "Sokolovsky, Yahli"]
[Black "Kohler, Aran"]
[WhiteFideId "2820242"]
[BlackFideId "1002856"]
[WhiteElo "2316"]
[BlackElo "2299"]
[Result "1-0"]
[Round "01"]
[TimeControl "180+2"]
[Date "2023.04.04"]
[WhiteClock "0:00:15"]
[BlackClock "0:00:16"]

1. b3 {[%clk 0:03:00]}  e5 {[%clk 0:02:56]} 2. Bb2 {[%clk 0:03:01]}  Nc6 {[%clk 0:02:56]} 3. e3 {[%clk 0:03:01]}  a6 {[%clk 0:02:56]} 4. Nf3 {[%clk 0:02:58]}  d6 {[%clk 0:02:54]} 5. d4 {[%clk 0:02:57]}  e4 {[%clk 0:02:49]} 6. Nfd2 {[%clk 0:02:58]}  d5 {[%clk 0:02:50]} 7. c4 {[%clk 0:02:58]}  f5 {[%clk 0:02:32]} 8. cxd5 {[%clk 0:02:52]}  Nb4 {[%clk 0:02:21]} 9. Nc3 {[%clk 0:02:43]}  Nf6 {[%clk 0:02:16]} 10. Nc4 {[%clk 0:02:18]}  Nbxd5 {[%clk 0:02:16]} 11. Ne5 {[%clk 0:02:10]}  Bb4 {[%clk 0:02:11]} 12. Qd2 {[%clk 0:02:06]}  O-O {[%clk 0:02:10]} 13. a3 {[%clk 0:02:00]}  Be7 {[%clk 0:01:57]} 14. Bc4 {[%clk 0:01:54]}  c6 {[%clk 0:01:55]} 15. O-O {[%clk 0:01:53]}  Kh8 {[%clk 0:01:55]} 16. Bxd5 {[%clk 0:01:41]}  cxd5 {[%clk 0:01:50]} 17. f4 {[%clk 0:01:41]}  Be6 {[%clk 0:01:49]} 18. Na4 {[%clk 0:01:39]}  Rc8 {[%clk 0:01:45]} 19. Rac1 {[%clk 0:01:34]}  Nd7 {[%clk 0:01:34]} 20. b4 {[%clk 0:01:28]}  Nxe5 {[%clk 0:01:24]} 21. dxe5 {[%clk 0:01:26]}  b6 {[%clk 0:01:20]} 22. Bd4 {[%clk 0:01:25]}  Rxc1 {[%clk 0:01:14]} 23. Rxc1 {[%clk 0:01:24]}  b5 {[%clk 0:01:14]} 24. Nc5 {[%clk 0:01:00]}  Bc8 {[%clk 0:01:12]} 25. Nb3 {[%clk 0:00:56]}  Bd7 {[%clk 0:00:58]} 26. Bc5 {[%clk 0:00:55]}  Be6 {[%clk 0:00:56]} 27. Bxe7 {[%clk 0:00:48]}  Qxe7 {[%clk 0:00:56]} 28. Nd4 {[%clk 0:00:49]}  Bg8 {[%clk 0:00:53]} 29. Rc6 {[%clk 0:00:44]}  Qb7 {[%clk 0:00:53]} 30. Qc3 {[%clk 0:00:43]}  Qe7 {[%clk 0:00:45]} 31. Rxa6 {[%clk 0:00:39]}  Qh4 {[%clk 0:00:46]} 32. g3 {[%clk 0:00:32]}  Qg4 {[%clk 0:00:45]} 33. Qc2 {[%clk 0:00:27]}  h5 {[%clk 0:00:37]} 34. Rc6 {[%clk 0:00:20]}  h4 {[%clk 0:00:36]} 35. Qe2 {[%clk 0:00:21]}  Qxe2 {[%clk 0:00:33]} 36. Nxe2 {[%clk 0:00:22]}  hxg3 {[%clk 0:00:33]} 37. hxg3 {[%clk 0:00:22]}  Ra8 {[%clk 0:00:34]} 38. Rc3 {[%clk 0:00:18]}  Bf7 {[%clk 0:00:33]} 39. Nd4 {[%clk 0:00:18]}  g6 {[%clk 0:00:31]} 40. Nxb5 {[%clk 0:00:18]}  Be8 {[%clk 0:00:27]} 41. Nd4 {[%clk 0:00:15]}  Ba4 {[%clk 0:00:24]} 42. b5 {[%clk 0:00:15]}  Kg7 {[%clk 0:00:24]} 43. b6 {[%clk 0:00:14]}  Rb8 {[%clk 0:00:23]} 44. Rc7+ {[%clk 0:00:14]}  Kh6 {[%clk 0:00:22]} 45. b7 {[%clk 0:00:15]}  Kh5 {[%clk 0:00:19]} 46. Ne6 {[%clk 0:00:15]}  Kg4 {[%clk 0:00:18]} 47. Kf2 {[%clk 0:00:15]}  Bb5 {[%clk 0:00:17]} 48. Nc5 {[%clk 0:00:15]}  d4 {[%clk 0:00:15]} 49. exd4 {[%clk 0:00:15]}  e3+ {[%clk 0:00:15]} 50. Kxe3 {[%clk 0:00:15]}  Kxg3 {[%clk 0:00:16]} 51. Rc8 {[%clk 0:00:15]} 1-0


[Site "https://www.chess.com"]

[Event "Titled Tuesday Blitz April 4 Late 2023"]
[White "olga-belka"]
[Black "Papp, Levente"]
[BlackFideId "751243"]
[WhiteElo "2288"]
[BlackElo "2380"]
[Result "0-1"]
[Round "01"]
[TimeControl "180+2"]
[Date "2023.04.04"]
[WhiteClock "0:01:35"]
[BlackClock "0:01:27"]

1. e4 {[%clk 0:02:59]}  e6 {[%clk 0:02:59]} 2. d4 {[%clk 0:02:59]}  d5 {[%clk 0:03:00]} 3. Nd2 {[%clk 0:02:59]}  Nc6 {[%clk 0:02:58]} 4. Ngf3 {[%clk 0:02:58]}  Nf6 {[%clk 0:02:58]} 5. e5 {[%clk 0:02:57]}  Nd7 {[%clk 0:02:58]} 6. c3 {[%clk 0:02:54]}  f6 {[%clk 0:02:58]} 7. exf6 {[%clk 0:02:53]}  Qxf6 {[%clk 0:02:59]} 8. Bd3 {[%clk 0:02:53]}  e5 {[%clk 0:02:59]} 9. dxe5 {[%clk 0:02:50]}  Ndxe5 {[%clk 0:03:00]} 10. Nxe5 {[%clk 0:02:47]}  Nxe5 {[%clk 0:03:01]} 11. Be2 {[%clk 0:02:43]}  Bd6 {[%clk 0:03:01]} 12. Nf3 {[%clk 0:02:39]}  c6 {[%clk 0:02:46]} 13. Be3 {[%clk 0:02:33]}  O-O {[%clk 0:02:45]} 14. Qd4 {[%clk 0:02:24]}  Bh3 {[%clk 0:01:52]} 15. O-O {[%clk 0:01:56]}  Nxf3+ {[%clk 0:01:28]} 16. Bxf3 {[%clk 0:01:54]}  Qg6 {[%clk 0:01:28]} 17. Qd1 {[%clk 0:01:36]}  Rxf3 {[%clk 0:01:27]} 18. Qxf3 {[%clk 0:01:35]}  Bg4 {[%clk 0:01:27]} 0-1


[Site "https://www.chess.com"]

[Event "Titled Tuesday Blitz April 4 Late 2023"]
[White "Mihajlov, Sebastian"]
[Black "Lock, Gavin R"]
[WhiteFideId "1512110"]
[BlackFideId "408646"]
[WhiteElo "2478"]
[BlackElo "2104"]
[Result "1-0"]
[Round "01"]
[TimeControl "180+2"]
[Date "2023.04.04"]
[WhiteClock "0:01:43"]
[BlackClock "0:00:01"]

1. d4 {[%clk 0:02:59]}  d5 {[%clk 0:02:58]} 2. c4 {[%clk 0:02:58]}  e6 {[%clk 0:02:58]} 3. Nc3 {[%clk 0:02:59]}  Nf6 {[%clk 0:02:57]} 4. Nf3 {[%clk 0:02:59]}  a6 {[%clk 0:02:57]} 5. cxd5 {[%clk 0:02:55]}  exd5 {[%clk 0:02:58]} 6. Bf4 {[%clk 0:02:56]}  Bd6 {[%clk 0:02:56]} 7. g3 {[%clk 0:02:48]}  O-O {[%clk 0:02:47]} 8. Bg2 {[%clk 0:02:48]}  Re8 {[%clk 0:02:22]} 9. O-O {[%clk 0:02:48]}  Bxf4 {[%clk 0:02:21]} 10. gxf4 {[%clk 0:02:49]}  Nc6 {[%clk 0:02:05]} 11. Ne5 {[%clk 0:02:46]}  Ne7 {[%clk 0:02:05]} 12. e3 {[%clk 0:02:45]}  Nf5 {[%clk 0:01:58]} 13. Kh1 {[%clk 0:02:42]}  c6 {[%clk 0:01:54]} 14. Rg1 {[%clk 0:02:39]}  Nd6 {[%clk 0:01:44]} 15. Bf3 {[%clk 0:02:33]}  Bf5 {[%clk 0:01:41]} 16. Qe2 {[%clk 0:02:33]}  g6 {[%clk 0:01:33]} 17. Rg2 {[%clk 0:02:24]}  Nde4 {[%clk 0:01:19]} 18. Na4 {[%clk 0:02:00]}  Kg7 {[%clk 0:01:14]} 19. b4 {[%clk 0:01:58]}  Nd6 {[%clk 0:01:12]} 20. Nc5 {[%clk 0:01:58]}  Nfe4 {[%clk 0:00:53]} 21. Bg4 {[%clk 0:01:56]}  f6 {[%clk 0:00:23]} 22. Ned3 {[%clk 0:01:51]}  Qe7 {[%clk 0:00:19]} 23. Bxf5 {[%clk 0:01:50]}  Nxf5 {[%clk 0:00:20]} 24. Qg4 {[%clk 0:01:49]}  Nfd6 {[%clk 0:00:15]} 25. a3 {[%clk 0:01:49]}  b6 {[%clk 0:00:10]} 26. Nb3 {[%clk 0:01:48]}  Rac8 {[%clk 0:00:07]} 27. f5 {[%clk 0:01:48]}  g5 {[%clk 0:00:07]} 28. Nf4 {[%clk 0:01:47]}  Nc4 {[%clk 0:00:06]} 29. Ne6+ {[%clk 0:01:47]}  Kh8 {[%clk 0:00:05]} 30. h3 {[%clk 0:01:44]}  a5 {[%clk 0:00:03]} 31. bxa5 {[%clk 0:01:44]}  Nxa5 {[%clk 0:00:03]} 32. Nxa5 {[%clk 0:01:44]}  bxa5 {[%clk 0:00:04]} 33. a4 {[%clk 0:01:44]}  Rb8 {[%clk 0:00:03]} 34. Rc1 {[%clk 0:01:44]}  Qd6 {[%clk 0:00:01]} 35. f3 {[%clk 0:01:43]} 1-0


[Site "https://www.chess.com"]

[Event "Titled Tuesday Blitz April 4 Late 2023"]
[White "Wang, Alexander J"]
[Black "Melikyan, Gnel"]
[WhiteFideId "30955270"]
[BlackFideId "54109990"]
[WhiteElo "2283"]
[BlackElo "2138"]
[Result "0-1"]
[Round "01"]
[TimeControl "180+2"]
[Date "2023.04.04"]
[WhiteClock "0:00:08"]
[BlackClock "0:00:18"]

1. e4 {[%clk 0:02:58]}  g5 {[%clk 0:02:50]} 2. d4 {[%clk 0:02:56]}  h6 {[%clk 0:02:47]} 3. h4 {[%clk 0:02:54]}  gxh4 {[%clk 0:02:47]} 4. Nf3 {[%clk 0:02:52]}  d6 {[%clk 0:02:46]} 5. Rxh4 {[%clk 0:02:51]}  Bg7 {[%clk 0:02:44]} 6. Bc4 {[%clk 0:02:47]}  Nc6 {[%clk 0:02:36]} 7. c3 {[%clk 0:02:44]}  e5 {[%clk 0:02:30]} 8. Rh1 {[%clk 0:02:30]}  exd4 {[%clk 0:02:22]} 9. cxd4 {[%clk 0:02:22]}  Bg4 {[%clk 0:02:22]} 10. Be3 {[%clk 0:02:08]}  Qe7 {[%clk 0:02:22]} 11. Nc3 {[%clk 0:02:04]}  O-O-O {[%clk 0:02:22]} 12. Be2 {[%clk 0:01:49]}  Kb8 {[%clk 0:02:06]} 13. Qd2 {[%clk 0:01:36]}  Nf6 {[%clk 0:02:05]} 14. d5 {[%clk 0:01:24]}  Ne5 {[%clk 0:01:57]} 15. Nxe5 {[%clk 0:01:23]}  Qxe5 {[%clk 0:01:58]} 16. f3 {[%clk 0:01:13]}  Bc8 {[%clk 0:01:55]} 17. O-O-O {[%clk 0:01:12]}  Nd7 {[%clk 0:01:51]} 18. Nb5 {[%clk 0:01:09]}  a6 {[%clk 0:01:01]} 19. Bd4 {[%clk 0:00:58]}  Qg3 {[%clk 0:01:01]} 20. Qa5 {[%clk 0:00:39]}  b6 {[%clk 0:00:57]} 21. Qc3 {[%clk 0:00:29]}  axb5 {[%clk 0:00:44]} 22. Bxg7 {[%clk 0:00:29]}  Rhg8 {[%clk 0:00:43]} 23. Bd4 {[%clk 0:00:29]}  Qxg2 {[%clk 0:00:41]} 24. Bxb5 {[%clk 0:00:29]}  Nc5 {[%clk 0:00:30]} 25. Bxc5 {[%clk 0:00:26]}  dxc5 {[%clk 0:00:28]} 26. Kb1 {[%clk 0:00:25]}  Rg6 {[%clk 0:00:22]} 27. Rhf1 {[%clk 0:00:25]}  h5 {[%clk 0:00:22]} 28. Bc6 {[%clk 0:00:25]}  Bb7 {[%clk 0:00:20]} 29. Bxb7 {[%clk 0:00:25]}  Kxb7 {[%clk 0:00:20]} 30. Qc4 {[%clk 0:00:24]}  Qg3 {[%clk 0:00:18]} 31. Qe2 {[%clk 0:00:21]}  Qe5 {[%clk 0:00:18]} 32. f4 {[%clk 0:00:21]}  Qe7 {[%clk 0:00:18]} 33. e5 {[%clk 0:00:20]}  h4 {[%clk 0:00:18]} 34. Qe4 {[%clk 0:00:20]}  Kb8 {[%clk 0:00:18]} 35. d6 {[%clk 0:00:20]}  cxd6 {[%clk 0:00:18]} 36. Qc6 {[%clk 0:00:20]}  Qc7 {[%clk 0:00:16]} 37. Qd5 {[%clk 0:00:18]}  Re6 {[%clk 0:00:13]} 38. Rh1 {[%clk 0:00:15]}  Qe7 {[%clk 0:00:13]} 39. Rhe1 {[%clk 0:00:13]}  Kc7 {[%clk 0:00:12]} 40. Qc4 {[%clk 0:00:06]}  dxe5 {[%clk 0:00:12]} 41. Rxd8 {[%clk 0:00:07]}  Qxd8 {[%clk 0:00:12]} 42. fxe5 {[%clk 0:00:06]}  Qd4 {[%clk 0:00:10]} 43. Qa6 {[%clk 0:00:03]}  Qd5 {[%clk 0:00:10]} 44. Qa7+ {[%clk 0:00:03]}  Qb7 {[%clk 0:00:11]} 45. Qxb7+ {[%clk 0:00:03]}  Kxb7 {[%clk 0:00:11]} 46. Rh1 {[%clk 0:00:03]}  Rh6 {[%clk 0:00:11]} 47. Rf1 {[%clk 0:00:04]}  Rh7 {[%clk 0:00:11]} 48. Kc2 {[%clk 0:00:03]}  h3 {[%clk 0:00:12]} 49. Kd3 {[%clk 0:00:03]}  h2 {[%clk 0:00:12]} 50. Rh1 {[%clk 0:00:04]}  Kc6 {[%clk 0:00:13]} 51. Ke4 {[%clk 0:00:04]}  Rh4+ {[%clk 0:00:13]} 52. Kf5 {[%clk 0:00:04]}  Kd5 {[%clk 0:00:14]} 53. Kf6 {[%clk 0:00:04]}  Rh7 {[%clk 0:00:14]} 54. Kf5 {[%clk 0:00:04]}  c4 {[%clk 0:00:14]} 55. a3 {[%clk 0:00:03]}  Kd4 {[%clk 0:00:14]} 56. e6 {[%clk 0:00:03]}  fxe6+ {[%clk 0:00:14]} 57. Kxe6 {[%clk 0:00:04]}  Kd3 {[%clk 0:00:15]} 58. Kd5 {[%clk 0:00:05]}  b5 {[%clk 0:00:16]} 59. Kc5 {[%clk 0:00:05]}  Rh5+ {[%clk 0:00:16]} 60. Kc6 {[%clk 0:00:05]}  Kc2 {[%clk 0:00:17]} 61. Rxh2+ {[%clk 0:00:04]}  Rxh2 {[%clk 0:00:17]} 62. Kxb5 {[%clk 0:00:05]}  Kb3 {[%clk 0:00:17]} 63. a4 {[%clk 0:00:05]}  Rh5+ {[%clk 0:00:16]} 64. Kb6 {[%clk 0:00:04]}  Kxb2 {[%clk 0:00:17]} 65. a5 {[%clk 0:00:04]}  c3 {[%clk 0:00:17]} 66. a6 {[%clk 0:00:05]}  c2 {[%clk 0:00:17]} 67. a7 {[%clk 0:00:05]}  Rh8 {[%clk 0:00:18]} 68. Kb7 {[%clk 0:00:06]}  c1=Q {[%clk 0:00:18]} 69. a8=Q {[%clk 0:00:07]}  Qh1+ {[%clk 0:00:18]} 70. Kb6 {[%clk 0:00:07]}  Qxa8 {[%clk 0:00:19]} 71. Kb5 {[%clk 0:00:08]}  Rh5+ {[%clk 0:00:19]} 72. Kb6 {[%clk 0:00:08]}  Qd8+ {[%clk 0:00:18]} 73. Kc6 {[%clk 0:00:08]}  Qd5+ {[%clk 0:00:18]} 74. Kb6 {[%clk 0:00:08]}  Rh6+ {[%clk 0:00:18]} 75. Kc7 {[%clk 0:00:08]}  Qd6+ {[%clk 0:00:18]} 76. Kc8 {[%clk 0:00:08]}  Rh8+ {[%clk 0:00:18]} 77. Kb7 {[%clk 0:00:08]}  Rb8+ {[%clk 0:00:18]} 78. Ka7 {[%clk 0:00:08]}  Qb6# {[%clk 0:00:18]} 0-1


[Site "https://www.chess.com"]

[Event "Titled Tuesday Blitz April 4 Late 2023"]
[White "Atanasov, Anthony"]
[Black "Briscoe, Chris"]
[WhiteFideId "2623897"]
[BlackFideId "408360"]
[WhiteElo "2326"]
[BlackElo "2111"]
[Result "1-0"]
[Round "01"]
[TimeControl "180+2"]
[Date "2023.04.04"]
[WhiteClock "0:00:16"]
[BlackClock "0:00:03"]

1. d4 {[%clk 0:03:00]}  Nf6 {[%clk 0:02:57]} 2. Bf4 {[%clk 0:03:01]}  e6 {[%clk 0:02:56]} 3. e3 {[%clk 0:03:02]}  d5 {[%clk 0:02:53]} 4. Nf3 {[%clk 0:03:02]}  Nbd7 {[%clk 0:02:47]} 5. Nbd2 {[%clk 0:03:02]}  Bd6 {[%clk 0:02:47]} 6. Bd3 {[%clk 0:03:02]}  Bxf4 {[%clk 0:02:46]} 7. exf4 {[%clk 0:03:03]}  c5 {[%clk 0:02:46]} 8. c3 {[%clk 0:03:03]}  b6 {[%clk 0:02:45]} 9. Qe2 {[%clk 0:03:03]}  O-O {[%clk 0:02:45]} 10. Ne5 {[%clk 0:03:02]}  Bb7 {[%clk 0:02:44]} 11. h4 {[%clk 0:02:52]}  Rc8 {[%clk 0:02:31]} 12. Ndf3 {[%clk 0:02:52]}  Ne4 {[%clk 0:02:30]} 13. Ng5 {[%clk 0:02:52]}  cxd4 {[%clk 0:02:09]} 14. cxd4 {[%clk 0:02:49]}  Qe7 {[%clk 0:01:55]} 15. a3 {[%clk 0:02:27]}  Nxe5 {[%clk 0:01:47]} 16. fxe5 {[%clk 0:02:24]}  f5 {[%clk 0:01:42]} 17. exf6 {[%clk 0:02:13]}  Qxf6 {[%clk 0:01:37]} 18. O-O {[%clk 0:02:04]}  Nxg5 {[%clk 0:01:04]} 19. hxg5 {[%clk 0:02:03]}  Qxg5 {[%clk 0:01:03]} 20. Qxe6+ {[%clk 0:02:02]}  Kh8 {[%clk 0:01:03]} 21. Rae1 {[%clk 0:01:52]}  Rc6 {[%clk 0:01:00]} 22. Qf7 {[%clk 0:01:44]}  Rf6 {[%clk 0:00:24]} 23. Qxb7 {[%clk 0:01:33]}  Qh4 {[%clk 0:00:23]} 24. Qe7 {[%clk 0:01:24]}  Qxd4 {[%clk 0:00:19]} 25. Qe3 {[%clk 0:01:12]}  Qh4 {[%clk 0:00:18]} 26. Qg3 {[%clk 0:01:06]}  Qh5 {[%clk 0:00:17]} 27. Re7 {[%clk 0:01:01]}  Rg8 {[%clk 0:00:15]} 28. Re5 {[%clk 0:00:58]}  Qf7 {[%clk 0:00:13]} 29. Rfe1 {[%clk 0:00:56]}  Rh6 {[%clk 0:00:13]} 30. Rf5 {[%clk 0:00:50]}  Qd7 {[%clk 0:00:11]} 31. Rg5 {[%clk 0:00:40]}  Qf7 {[%clk 0:00:08]} 32. Qf3 {[%clk 0:00:32]}  Qd7 {[%clk 0:00:06]} 33. Qxd5 {[%clk 0:00:29]}  Qc7 {[%clk 0:00:05]} 34. Qe5 {[%clk 0:00:17]}  Qd7 {[%clk 0:00:03]} 35. Bf5 {[%clk 0:00:15]}  Qd2 {[%clk 0:00:03]} 36. Qxg7+ {[%clk 0:00:14]}  Rxg7 {[%clk 0:00:03]} 37. Re8+ {[%clk 0:00:15]}  Rg8 {[%clk 0:00:03]} 38. Rgxg8# {[%clk 0:00:16]} 1-0


[Site "https://www.chess.com"]

[Event "Titled Tuesday Blitz April 4 Late 2023"]
[White "Vemparala, Nikash"]
[Black "Ehlvest, Jaan"]
[WhiteFideId "30960967"]
[BlackFideId "4500016"]
[WhiteElo "2023"]
[BlackElo "2442"]
[Result "0-1"]
[Round "01"]
[TimeControl "180+2"]
[Date "2023.04.04"]
[WhiteClock "0:00:07"]
[BlackClock "0:00:16"]

1. e4 {[%clk 0:02:54]}  c5 {[%clk 0:02:59]} 2. Nf3 {[%clk 0:02:53]}  Nc6 {[%clk 0:02:59]} 3. Bb5 {[%clk 0:02:53]}  g6 {[%clk 0:02:58]} 4. Bxc6 {[%clk 0:02:53]}  dxc6 {[%clk 0:02:57]} 5. O-O {[%clk 0:02:54]}  Bg7 {[%clk 0:02:57]} 6. d3 {[%clk 0:02:50]}  e5 {[%clk 0:02:57]} 7. h3 {[%clk 0:02:50]}  Qe7 {[%clk 0:02:56]} 8. Nc3 {[%clk 0:02:50]}  Nf6 {[%clk 0:02:56]} 9. Be3 {[%clk 0:02:51]}  Nd7 {[%clk 0:02:55]} 10. Qd2 {[%clk 0:02:51]}  h6 {[%clk 0:02:53]} 11. Nh2 {[%clk 0:02:51]}  Nf8 {[%clk 0:02:50]} 12. f4 {[%clk 0:02:51]}  exf4 {[%clk 0:02:50]} 13. Bxf4 {[%clk 0:02:52]}  Ne6 {[%clk 0:02:50]} 14. Be3 {[%clk 0:02:52]}  Nd4 {[%clk 0:02:45]} 15. Rae1 {[%clk 0:02:49]}  Be6 {[%clk 0:02:44]} 16. a4 {[%clk 0:02:38]}  O-O-O {[%clk 0:02:41]} 17. a5 {[%clk 0:02:32]}  c4 {[%clk 0:02:35]} 18. a6 {[%clk 0:02:26]}  b6 {[%clk 0:02:34]} 19. Qf2 {[%clk 0:02:20]}  Qb4 {[%clk 0:02:16]} 20. Rb1 {[%clk 0:01:46]}  Rhe8 {[%clk 0:02:00]} 21. Rfd1 {[%clk 0:01:43]}  f5 {[%clk 0:01:56]} 22. Nf3 {[%clk 0:01:40]}  cxd3 {[%clk 0:01:36]} 23. cxd3 {[%clk 0:01:40]}  g5 {[%clk 0:01:29]} 24. e5 {[%clk 0:01:25]}  Nxf3+ {[%clk 0:01:14]} 25. Qxf3 {[%clk 0:01:25]}  Bd7 {[%clk 0:01:13]} 26. Rbc1 {[%clk 0:00:51]}  Kb8 {[%clk 0:00:49]} 27. Nd5 {[%clk 0:00:38]}  Qb5 {[%clk 0:00:45]} 28. Nf6 {[%clk 0:00:22]}  Rxe5 {[%clk 0:00:45]} 29. Nxd7+ {[%clk 0:00:20]}  Rxd7 {[%clk 0:00:45]} 30. Bf2 {[%clk 0:00:15]}  Red5 {[%clk 0:00:39]} 31. d4 {[%clk 0:00:13]}  f4 {[%clk 0:00:33]} 32. Qe4 {[%clk 0:00:13]}  Qxa6 {[%clk 0:00:25]} 33. Qe8+ {[%clk 0:00:12]}  Qc8 {[%clk 0:00:23]} 34. Qxc8+ {[%clk 0:00:12]}  Kxc8 {[%clk 0:00:24]} 35. Rxc6+ {[%clk 0:00:13]}  Kb7 {[%clk 0:00:24]} 36. Rdc1 {[%clk 0:00:13]}  Bxd4 {[%clk 0:00:23]} 37. Bxd4 {[%clk 0:00:13]}  Rxd4 {[%clk 0:00:23]} 38. Rxh6 {[%clk 0:00:14]}  Rd2 {[%clk 0:00:21]} 39. b4 {[%clk 0:00:12]}  Rb2 {[%clk 0:00:21]} 40. Rg6 {[%clk 0:00:10]}  Rxb4 {[%clk 0:00:20]} 41. Rxg5 {[%clk 0:00:10]}  a5 {[%clk 0:00:20]} 42. h4 {[%clk 0:00:09]}  a4 {[%clk 0:00:20]} 43. h5 {[%clk 0:00:10]}  a3 {[%clk 0:00:19]} 44. h6 {[%clk 0:00:10]}  a2 {[%clk 0:00:19]} 45. Rg7 {[%clk 0:00:07]}  Rxg7 {[%clk 0:00:18]} 46. hxg7 {[%clk 0:00:08]}  Rb1 {[%clk 0:00:17]} 47. g8=Q {[%clk 0:00:05]}  Rxc1+ {[%clk 0:00:17]} 48. Kh2 {[%clk 0:00:06]}  a1=Q {[%clk 0:00:17]} 49. Qd5+ {[%clk 0:00:06]}  Rc6 {[%clk 0:00:16]} 50. Qd7+ {[%clk 0:00:06]}  Rc7 {[%clk 0:00:16]} 51. Qd5+ {[%clk 0:00:07]}  Ka7 {[%clk 0:00:16]} 0-1


[Site "https://www.chess.com"]